[Event "*** Titled Tuesday 3|2 Blitz"]
[Site "Chess.com"]
[Date "2015.05.05"]
[Round "8"]
[White "lukas_111111"]
[Black "goldaxe"]
[Result "0-1"]
[WhiteElo "2326"]
[BlackElo "2195"]
[TimeControl "180+2"]
[EndTime "12:44:37 PDT"]
[Termination "goldaxe won by resignation"]

1. d4 {[%clk 0:03:01.9]} 1... Nf6 {[%clk 0:03:00.4]} 2. c4 {[%clk 0:03:02.3]}
2... g6 {[%clk 0:03:02]} 3. Nc3 {[%clk 0:03:01]} 3... d5 {[%clk 0:03:03.1]} 4.
cxd5 {[%clk 0:02:58.1]} 4... Nxd5 {[%clk 0:03:05]} 5. Bd2 {[%clk 0:02:59.4]}
5... Bg7 {[%clk 0:03:04.7]} 6. e4 {[%clk 0:03:00.5]} 6... Nxc3 {[%clk
0:03:05.7]} 7. Bxc3 {[%clk 0:03:01.6]} 7... c5 {[%clk 0:03:06.5]} 8. d5 {[%clk
0:02:58.6]} 8... Bxc3+ {[%clk 0:03:01.1]} 9. bxc3 {[%clk 0:02:59.8]} 9... O-O
{[%clk 0:02:58.7]} 10. Nf3 {[%clk 0:03:00.4]} 10... e6 {[%clk 0:02:55.4]} 11.
Be2 {[%clk 0:03:00]} 11... exd5 {[%clk 0:02:54.6]} 12. exd5 {[%clk 0:03:01.2]}
12... Qf6 {[%clk 0:02:43.6]} 13. O-O {[%clk 0:02:56.8]} 13... Qxc3 {[%clk
0:02:38.8]} 14. Rc1 {[%clk 0:02:56.9]} 14... Qa5 {[%clk 0:02:35.1]} 15. d6
{[%clk 0:02:37.6]} 15... Bg4 {[%clk 0:02:30.1]} 16. Ne5 {[%clk 0:02:30.3]} 16...
Nd7 {[%clk 0:02:10.5]} 17. Nxg4 {[%clk 0:02:29]} 17... Qxa2 {[%clk 0:02:05.8]}
18. Bc4 {[%clk 0:02:27.4]} 18... Qb2 {[%clk 0:02:05]} 19. Qf3 {[%clk 0:02:21.9]}
19... h5 {[%clk 0:01:53.9]} 20. Ne3 {[%clk 0:02:11.6]} 20... Ne5 {[%clk
0:01:49.7]} 21. Qf6 {[%clk 0:02:12.4]} 21... Nxc4 {[%clk 0:01:45.6]} 22. Nd5
{[%clk 0:02:06.6]} 22... Qxf6 {[%clk 0:01:28.7]} 23. Nxf6+ {[%clk 0:02:06.6]}
23... Kg7 {[%clk 0:01:30.6]} 24. Nxh5+ {[%clk 0:02:07.8]} 24... gxh5 {[%clk
0:01:30.5]} 25. Rxc4 {[%clk 0:02:09.7]} 25... b6 {[%clk 0:01:00.9]} 26. Rd1
{[%clk 0:02:10.3]} 26... Rad8 {[%clk 0:00:50.7]} 27. Rd5 {[%clk 0:02:08]} 27...
Rfe8 {[%clk 0:00:47.9]} 28. h4 {[%clk 0:02:06.9]} 28... Re6 {[%clk 0:00:45.8]}
29. Rxh5 {[%clk 0:02:01.4]} 29... Rdxd6 {[%clk 0:00:45.2]} 30. Rf4 {[%clk
0:01:53.9]} 30... Rd4 {[%clk 0:00:43.6]} 31. Rg5+ {[%clk 0:01:53.2]} 31... Rg6
{[%clk 0:00:42.9]} 32. Rxd4 {[%clk 0:01:45.3]} 32... Rxg5 {[%clk 0:00:36]} 33.
Rd7 {[%clk 0:01:39.8]} 33... Rg4 {[%clk 0:00:36.6]} 34. Rxa7 {[%clk 0:01:38.2]}
34... Rxh4 {[%clk 0:00:37.9]} 35. Rb7 {[%clk 0:01:34.8]} 35... Rb4 {[%clk
0:00:38.6]} 36. Kf1 {[%clk 0:01:34.4]} 36... c4 {[%clk 0:00:38.9]} 37. Ke2
{[%clk 0:01:35.9]} 37... b5 {[%clk 0:00:40]} 38. f3 {[%clk 0:01:34.5]} 38...
Rb2+ {[%clk 0:00:40]} 39. Ke3 {[%clk 0:01:35.3]} 39... b4 {[%clk 0:00:38.2]} 40.
Kd4 {[%clk 0:01:34.1]} 40... c3 {[%clk 0:00:38.7]} 41. g4 {[%clk 0:01:27.3]}
41... c2 {[%clk 0:00:38.9]} 42. Rc7 {[%clk 0:01:27.5]} 42... b3 {[%clk
0:00:37.9]} 0-1

[Event "*** Titled Tuesday 3|2 Blitz"]
[Site "Chess.com"]
[Date "2015.05.05"]
[Round "8"]
[White "jlandaw"]
[Black "wonderfultime"]
[Result "0-1"]
[WhiteElo "2371"]
[BlackElo "2570"]
[TimeControl "180+2"]
[EndTime "12:44:53 PDT"]
[Termination "wonderfultime won by resignation"]

1. e4 {[%clk 0:03:01.9]} 1... c5 {[%clk 0:02:59.9]} 2. Nc3 {[%clk 0:03:02.7]}
2... Nc6 {[%clk 0:03:00.2]} 3. g3 {[%clk 0:03:04]} 3... g6 {[%clk 0:02:59.9]} 4.
Bg2 {[%clk 0:03:05.4]} 4... Bg7 {[%clk 0:03:00.9]} 5. d3 {[%clk 0:03:06.6]} 5...
d6 {[%clk 0:03:02.2]} 6. f4 {[%clk 0:03:07.7]} 6... Nf6 {[%clk 0:03:03.5]} 7.
Nf3 {[%clk 0:03:08.9]} 7... O-O {[%clk 0:03:04]} 8. O-O {[%clk 0:03:09.5]} 8...
Rb8 {[%clk 0:03:05]} 9. a3 {[%clk 0:03:08.8]} 9... b5 {[%clk 0:03:04.3]} 10. Rb1
{[%clk 0:03:10.2]} 10... a5 {[%clk 0:03:04.2]} 11. a4 {[%clk 0:03:11.6]} 11...
b4 {[%clk 0:03:05.3]} 12. Nb5 {[%clk 0:03:12.9]} 12... Ba6 {[%clk 0:03:02.9]}
13. c4 {[%clk 0:03:14]} 13... Nd7 {[%clk 0:02:50.9]} 14. b3 {[%clk 0:03:01.8]}
14... Bb7 {[%clk 0:02:35]} 15. Bb2 {[%clk 0:02:55.8]} 15... Nf6 {[%clk
0:02:21.2]} 16. h3 {[%clk 0:02:50.1]} 16... Nh5 {[%clk 0:02:13.7]} 17. Bxg7
{[%clk 0:02:34.1]} 17... Nxg7 {[%clk 0:02:15.6]} 18. d4 {[%clk 0:02:30.7]} 18...
cxd4 {[%clk 0:02:12.7]} 19. Nfxd4 {[%clk 0:02:32.4]} 19... Nxd4 {[%clk
0:02:13.8]} 20. Qxd4 {[%clk 0:02:32.8]} 20... Ne6 {[%clk 0:02:15.1]} 21. Qe3
{[%clk 0:02:30.3]} 21... Nc5 {[%clk 0:02:15.3]} 22. f5 {[%clk 0:02:23.2]} 22...
Nd7 {[%clk 0:02:14.1]} 23. Rbd1 {[%clk 0:02:09.3]} 23... Qc8 {[%clk 0:02:06]}
24. Kh2 {[%clk 0:01:51.3]} 24... Qc5 {[%clk 0:02:06.1]} 25. Qh6 {[%clk
0:01:47.2]} 25... Qe5 {[%clk 0:02:06.1]} 26. Nd4 {[%clk 0:01:19.1]} 26... Qg7
{[%clk 0:01:47.8]} 27. Qe3 {[%clk 0:01:14]} 27... Nc5 {[%clk 0:01:47.6]} 28. f6
{[%clk 0:01:11.4]} 28... exf6 {[%clk 0:01:48.1]} 29. Nb5 {[%clk 0:01:12.8]}
29... f5 {[%clk 0:01:41]} 30. exf5 {[%clk 0:00:54]} 30... Bxg2 {[%clk
0:01:42.9]} 31. f6 {[%clk 0:00:29.3]} 31... Qh8 {[%clk 0:01:43.9]} 32. Kxg2
{[%clk 0:00:30.1]} 32... Rfe8 {[%clk 0:01:45.4]} 33. Qf3 {[%clk 0:00:27.8]}
33... Re6 {[%clk 0:01:43.1]} 34. Rxd6 {[%clk 0:00:26.5]} 34... h5 {[%clk
0:01:38.4]} 35. Rxe6 {[%clk 0:00:26.1]} 35... Nxe6 {[%clk 0:01:40.3]} 36. Nd6
{[%clk 0:00:19.9]} 36... Qh6 {[%clk 0:01:39.3]} 37. Rd1 {[%clk 0:00:17]} 37...
Qg5 {[%clk 0:01:37.4]} 38. h4 {[%clk 0:00:15.6]} 38... Qe5 {[%clk 0:01:38.2]}
39. Ne4 {[%clk 0:00:16.2]} 39... Re8 {[%clk 0:01:36.6]} 40. Nd6 {[%clk
0:00:13.6]} 40... Rd8 {[%clk 0:01:35.7]} 41. Qd5 {[%clk 0:00:14.9]} 41... Qb2+
{[%clk 0:01:36.1]} 42. Kh3 {[%clk 0:00:15.2]} 42... Qxb3 {[%clk 0:01:34.5]} 43.
c5 {[%clk 0:00:16.7]} 43... Nf4+ {[%clk 0:01:35.4]} 0-1

[Event "*** Titled Tuesday 3|2 Blitz"]
[Site "Chess.com"]
[Date "2015.05.05"]
[Round "8"]
[White "AndrewMcStone"]
[Black "destroyer305"]
[Result "0-1"]
[WhiteElo "1992"]
[BlackElo "2153"]
[TimeControl "180+2"]
[EndTime "12:45:34 PDT"]
[Termination "destroyer305 won by resignation"]

1. d4 {[%clk 0:03:01.9]} 1... Nf6 {[%clk 0:03:00.5]} 2. c4 {[%clk 0:03:03]} 2...
c5 {[%clk 0:03:02]} 3. d5 {[%clk 0:03:03.2]} 3... b5 {[%clk 0:03:03.6]} 4. cxb5
{[%clk 0:03:01.8]} 4... a6 {[%clk 0:03:05.2]} 5. f3 {[%clk 0:03:03.1]} 5... d6
{[%clk 0:03:01.6]} 6. e4 {[%clk 0:03:03.6]} 6... g6 {[%clk 0:03:00.9]} 7. Na3
{[%clk 0:03:04.8]} 7... Bg7 {[%clk 0:03:02.1]} 8. Ne2 {[%clk 0:02:58.6]} 8...
O-O {[%clk 0:02:58.9]} 9. Nc3 {[%clk 0:02:59.2]} 9... Nbd7 {[%clk 0:02:55.3]}
10. Be2 {[%clk 0:02:57.3]} 10... axb5 {[%clk 0:02:49.3]} 11. Naxb5 {[%clk
0:02:57.7]} 11... Ba6 {[%clk 0:02:50.8]} 12. O-O {[%clk 0:02:47.1]} 12... Qb6
{[%clk 0:02:52.3]} 13. Be3 {[%clk 0:02:46]} 13... Rfb8 {[%clk 0:02:53.7]} 14. a4
{[%clk 0:02:45.8]} 14... Ne8 {[%clk 0:02:54.9]} 15. Qd2 {[%clk 0:02:39.1]} 15...
Nc7 {[%clk 0:02:54.4]} 16. Rab1 {[%clk 0:02:11.9]} 16... Qa5 {[%clk 0:02:32.7]}
17. Bg5 {[%clk 0:01:41.5]} 17... Nxb5 {[%clk 0:02:20.9]} 18. axb5 {[%clk
0:01:36.1]} 18... Bxc3 {[%clk 0:01:20.8]} 19. Qxc3 {[%clk 0:01:35.1]} 19... Bxb5
{[%clk 0:01:15.9]} 20. Bxb5 {[%clk 0:00:52.4]} 20... Qxb5 {[%clk 0:01:17.8]} 21.
Bxe7 {[%clk 0:00:52.3]} 21... Ra2 {[%clk 0:01:19.3]} 22. Bxd6 {[%clk 0:00:50]}
22... Qb6 {[%clk 0:01:19.9]} 23. Bxb8 {[%clk 0:00:49.4]} 23... Qxb8 {[%clk
0:01:20]} 24. b4 {[%clk 0:00:44.1]} 24... cxb4 {[%clk 0:01:09.5]} 25. Rxb4
{[%clk 0:00:31]} 25... Qa7+ {[%clk 0:01:10.3]} 26. Kh1 {[%clk 0:00:32]} 26...
Qa6 {[%clk 0:01:00.8]} 27. Rc1 {[%clk 0:00:29.6]} 27... Qe2 {[%clk 0:00:59]} 28.
Rg1 {[%clk 0:00:10.4]} 28... Rc2 {[%clk 0:01:00.3]} 29. Qb3 {[%clk 0:00:07.9]}
29... Nc5 {[%clk 0:00:56.7]} 30. Rb8+ {[%clk 0:00:08.7]} 30... Kg7 {[%clk
0:00:58.2]} 31. Qb5 {[%clk 0:00:09.2]} 31... Nd3 {[%clk 0:00:57.5]} 32. Qxd3
{[%clk 0:00:03.7]} 32... Qxd3 {[%clk 0:00:58.2]} 33. Rbb1 {[%clk 0:00:05]} 33...
Qd2 {[%clk 0:00:56.9]} 34. Rbd1 {[%clk 0:00:06]} 34... Qf2 {[%clk 0:00:57.8]}
35. d6 {[%clk 0:00:07.9]} 35... Rd2 {[%clk 0:00:58.8]} 36. d7 {[%clk 0:00:06.8]}
36... Qd4 {[%clk 0:00:52.5]} 37. d8=Q {[%clk 0:00:02.8]} 37... Qxd8 {[%clk
0:00:52.7]} 0-1

[Event "*** Titled Tuesday 3|2 Blitz"]
[Site "Chess.com"]
[Date "2015.05.05"]
[Round "8"]
[White "MrHenriksson"]
[Black "Mvpag"]
[Result "1-0"]
[WhiteElo "2018"]
[BlackElo "1925"]
[TimeControl "180+2"]
[EndTime "12:45:35 PDT"]
[Termination "MrHenriksson won by resignation"]

1. d4 {[%clk 0:03:01.9]} 1... d5 {[%clk 0:03:01]} 2. Nf3 {[%clk 0:03:02.7]} 2...
e6 {[%clk 0:03:02.6]} 3. g3 {[%clk 0:03:01.3]} 3... Nd7 {[%clk 0:03:00.2]} 4.
Bg2 {[%clk 0:03:02.6]} 4... c5 {[%clk 0:03:01.7]} 5. O-O {[%clk 0:03:03.6]} 5...
Ngf6 {[%clk 0:03:02.1]} 6. c4 {[%clk 0:03:03.4]} 6... b6 {[%clk 0:03:02.8]} 7.
cxd5 {[%clk 0:03:03.3]} 7... exd5 {[%clk 0:03:02.1]} 8. Nc3 {[%clk 0:03:04]}
8... Bb7 {[%clk 0:03:00.5]} 9. Bf4 {[%clk 0:03:03.9]} 9... a6 {[%clk 0:02:58.2]}
10. Ne5 {[%clk 0:02:58.3]} 10... Be7 {[%clk 0:02:56.7]} 11. dxc5 {[%clk
0:02:15.2]} 11... Nxc5 {[%clk 0:02:37.1]} 12. b4 {[%clk 0:02:05]} 12... Nce4
{[%clk 0:02:34.4]} 13. Qa4+ {[%clk 0:01:40.9]} 13... b5 {[%clk 0:02:31.5]} 14.
Nxb5 {[%clk 0:01:41.5]} 14... axb5 {[%clk 0:01:54.8]} 15. Qxb5+ {[%clk 0:01:41]}
15... Kf8 {[%clk 0:01:51.5]} 16. Qxb7 {[%clk 0:01:38.4]} 16... Rb8 {[%clk
0:01:49]} 17. Qa7 {[%clk 0:01:25.3]} 17... Qb6 {[%clk 0:01:20.4]} 18. Ng6+
{[%clk 0:01:16.1]} 18... fxg6 {[%clk 0:00:58.4]} 19. Qxb8+ {[%clk 0:01:17.5]}
19... Qxb8 {[%clk 0:00:57.8]} 20. Bxb8 {[%clk 0:01:19.4]} 20... Kf7 {[%clk
0:00:53.6]} 21. Be5 {[%clk 0:01:12.2]} 21... Bxb4 {[%clk 0:00:53.9]} 22. Rab1
{[%clk 0:01:07.6]} 22... Bc5 {[%clk 0:00:46.9]} 23. Bxf6 {[%clk 0:01:06.5]}
23... Nxf6 {[%clk 0:00:28.6]} 24. Rb7+ {[%clk 0:00:57.5]} 24... Ke6 {[%clk
0:00:27.7]} 25. Rxg7 {[%clk 0:00:56.6]} 25... Rf8 {[%clk 0:00:24.6]} 26. Bf3
{[%clk 0:00:51.9]} 26... Kf5 {[%clk 0:00:21.1]} 27. Rc7 {[%clk 0:00:47.5]} 27...
Bb6 {[%clk 0:00:21.3]} 28. Rc6 {[%clk 0:00:47.3]} 28... Ba7 {[%clk 0:00:18.2]}
29. Rb1 {[%clk 0:00:45.4]} 29... g5 {[%clk 0:00:19]} 30. h3 {[%clk 0:00:45.1]}
30... h5 {[%clk 0:00:18.8]} 31. Rb7 {[%clk 0:00:42.5]} 31... g4 {[%clk 0:00:18]}
32. Rxa7 {[%clk 0:00:41.2]} 32... gxf3 {[%clk 0:00:18.7]} 33. exf3 {[%clk
0:00:41.9]} 33... Ke5 {[%clk 0:00:12.8]} 34. Ra5 {[%clk 0:00:41]} 34... Nd7
{[%clk 0:00:13.2]} 35. Rh6 {[%clk 0:00:39.5]} 35... Rxf3 {[%clk 0:00:13.8]} 36.
Rxh5+ {[%clk 0:00:38.9]} 36... Ke4 {[%clk 0:00:15.2]} 37. Rhxd5 {[%clk
0:00:38.7]} 37... Nf6 {[%clk 0:00:15.3]} 38. Re5+ {[%clk 0:00:37.1]} 38... Kd4
{[%clk 0:00:16.1]} 39. Rf5 {[%clk 0:00:37.5]} 39... Rxf5 {[%clk 0:00:14.5]} 40.
Rxf5 {[%clk 0:00:37.4]} 40... Nd5 {[%clk 0:00:15.4]} 41. h4 {[%clk 0:00:37.8]}
1-0

[Event "*** Titled Tuesday 3|2 Blitz"]
[Site "Chess.com"]
[Date "2015.05.05"]
[Round "8"]
[White "Imre91"]
[Black "Konavets"]
[Result "0-1"]
[WhiteElo "2561"]
[BlackElo "2461"]
[TimeControl "180+2"]
[EndTime "12:45:53 PDT"]
[Termination "Konavets won by resignation"]

1. d4 {[%clk 0:03:01.5]} 1... Nf6 {[%clk 0:02:59.8]} 2. Nf3 {[%clk 0:03:02.8]}
2... g6 {[%clk 0:03:01.1]} 3. g3 {[%clk 0:03:03.9]} 3... Bg7 {[%clk 0:03:02.1]}
4. Bg2 {[%clk 0:03:05.5]} 4... O-O {[%clk 0:03:03.9]} 5. O-O {[%clk 0:03:06.9]}
5... c5 {[%clk 0:03:05.6]} 6. d5 {[%clk 0:03:07.2]} 6... e6 {[%clk 0:03:06.5]}
7. Nc3 {[%clk 0:03:07.5]} 7... d6 {[%clk 0:03:06.9]} 8. a4 {[%clk 0:03:03.9]}
8... Re8 {[%clk 0:03:04.4]} 9. Re1 {[%clk 0:03:03.6]} 9... h6 {[%clk 0:03:00.8]}
10. e4 {[%clk 0:02:55.5]} 10... exd5 {[%clk 0:03:01.4]} 11. Nxd5 {[%clk
0:02:56.6]} 11... Nxd5 {[%clk 0:02:46.4]} 12. Qxd5 {[%clk 0:02:55.6]} 12... Nc6
{[%clk 0:02:47.3]} 13. c3 {[%clk 0:02:54.1]} 13... Be6 {[%clk 0:02:48.4]} 14.
Qd1 {[%clk 0:02:51.4]} 14... Qe7 {[%clk 0:02:47]} 15. Nd2 {[%clk 0:02:48.1]}
15... Rad8 {[%clk 0:02:47.2]} 16. Nf1 {[%clk 0:02:45.2]} 16... Ne5 {[%clk
0:02:34.4]} 17. Ne3 {[%clk 0:02:45.2]} 17... c4 {[%clk 0:02:35.7]} 18. h3 {[%clk
0:02:36.4]} 18... Qd7 {[%clk 0:02:27.9]} 19. Kh2 {[%clk 0:02:35.6]} 19... Nd3
{[%clk 0:02:28.9]} 20. Re2 {[%clk 0:02:34.2]} 20... h5 {[%clk 0:02:12.4]} 21.
Rc2 {[%clk 0:02:29.1]} 21... h4 {[%clk 0:02:11.2]} 22. g4 {[%clk 0:02:28.5]}
22... Be5+ {[%clk 0:02:11.6]} 23. Kg1 {[%clk 0:02:29.2]} 23... Qe7 {[%clk
0:02:09.1]} 24. Bd2 {[%clk 0:02:03.8]} 24... Qf6 {[%clk 0:02:05.8]} 25. Qf3
{[%clk 0:01:59]} 25... Qxf3 {[%clk 0:01:17.4]} 26. Bxf3 {[%clk 0:01:59.9]} 26...
Nf4 {[%clk 0:01:18.7]} 27. Bg2 {[%clk 0:02:00.9]} 27... Kg7 {[%clk 0:01:12.4]}
28. Bf1 {[%clk 0:01:57]} 28... Rc8 {[%clk 0:01:06.5]} 29. a5 {[%clk 0:01:55.4]}
29... a6 {[%clk 0:01:04.3]} 30. Ra4 {[%clk 0:01:50.5]} 30... Rc5 {[%clk
0:01:02.6]} 31. Bc1 {[%clk 0:01:23]} 31... Re7 {[%clk 0:01:00]} 32. Nxc4 {[%clk
0:01:17.3]} 32... Nxh3+ {[%clk 0:00:51.2]} 33. Kg2 {[%clk 0:01:18.5]} 33... Nf4+
{[%clk 0:00:45.1]} 34. Kf3 {[%clk 0:01:15.4]} 34... g5 {[%clk 0:00:24.3]} 35.
Ne3 {[%clk 0:01:15]} 35... h3 {[%clk 0:00:24]} 36. Nf5+ {[%clk 0:01:06]} 36...
Bxf5 {[%clk 0:00:24.9]} 37. exf5 {[%clk 0:01:07.3]} 37... h2 {[%clk 0:00:20.5]}
38. Bg2 {[%clk 0:01:08.5]} 38... Rd5 {[%clk 0:00:21.4]} 39. Bd2 {[%clk 0:01:03]}
39... Rd3+ {[%clk 0:00:20.7]} 40. Be3 {[%clk 0:00:48]} 40... Rd1 {[%clk
0:00:21]} 41. Rd2 {[%clk 0:00:49.4]} 41... Rg1 {[%clk 0:00:18.7]} 42. Bxf4
{[%clk 0:00:48.8]} 42... Bxf4 {[%clk 0:00:20.6]} 43. Rd5 {[%clk 0:00:49.2]}
43... Rxg2 {[%clk 0:00:18.3]} 44. Kxg2 {[%clk 0:00:49.8]} 44... Re1 {[%clk
0:00:19.2]} 45. f6+ {[%clk 0:00:51]} 45... Kg6 {[%clk 0:00:19.9]} 0-1

[Event "*** Titled Tuesday 3|2 Blitz"]
[Site "Chess.com"]
[Date "2015.05.05"]
[Round "8"]
[White "VSERGUEI"]
[Black "Daniel_Fridman"]
[Result "1-0"]
[WhiteElo "2491"]
[BlackElo "2580"]
[TimeControl "180+2"]
[EndTime "12:45:57 PDT"]
[Termination "VSERGUEI won by resignation"]

1. d4 {[%clk 0:03:01.9]} 1... Nf6 {[%clk 0:03:00.4]} 2. c4 {[%clk 0:03:02.6]}
2... e6 {[%clk 0:03:01]} 3. Nc3 {[%clk 0:03:03.1]} 3... c5 {[%clk 0:03:02.9]} 4.
d5 {[%clk 0:03:03.8]} 4... exd5 {[%clk 0:03:04.8]} 5. cxd5 {[%clk 0:03:04.8]}
5... Bd6 {[%clk 0:03:06.7]} 6. g3 {[%clk 0:03:04]} 6... O-O {[%clk 0:03:07.3]}
7. Bg2 {[%clk 0:03:05.1]} 7... Bc7 {[%clk 0:03:08.9]} 8. d6 {[%clk 0:03:05.7]}
8... Ba5 {[%clk 0:03:09.9]} 9. Nh3 {[%clk 0:03:06]} 9... Re8 {[%clk 0:03:09.2]}
10. O-O {[%clk 0:03:05.8]} 10... Bxc3 {[%clk 0:03:09]} 11. bxc3 {[%clk
0:03:05.9]} 11... Nc6 {[%clk 0:03:10.9]} 12. Bg5 {[%clk 0:03:01]} 12... h6
{[%clk 0:03:11.6]} 13. Bxf6 {[%clk 0:03:01.8]} 13... Qxf6 {[%clk 0:03:13.5]} 14.
Nf4 {[%clk 0:03:03.1]} 14... Ne5 {[%clk 0:03:00.6]} 15. Qd5 {[%clk 0:02:53.4]}
15... g5 {[%clk 0:02:31.6]} 16. Nd3 {[%clk 0:02:53.3]} 16... Nxd3 {[%clk
0:02:25.4]} 17. exd3 {[%clk 0:02:53.3]} 17... Re5 {[%clk 0:02:10.7]} 18. Qc4
{[%clk 0:02:30.5]} 18... Rb8 {[%clk 0:02:11.5]} 19. d4 {[%clk 0:02:28.7]} 19...
cxd4 {[%clk 0:02:07.2]} 20. Qc7 {[%clk 0:02:24.7]} 20... Ra8 {[%clk 0:02:06.4]}
21. cxd4 {[%clk 0:02:25]} 21... Re6 {[%clk 0:01:50.9]} 22. d5 {[%clk 0:02:18.6]}
22... Rxd6 {[%clk 0:01:49.3]} 23. Rae1 {[%clk 0:02:18.4]} 23... Kf8 {[%clk
0:01:37.1]} 24. Re2 {[%clk 0:02:13.7]} 24... b5 {[%clk 0:01:38.1]} 25. Rfe1
{[%clk 0:01:57.7]} 25... Ba6 {[%clk 0:01:38.3]} 26. Re6 {[%clk 0:01:55.8]} 26...
Rxe6 {[%clk 0:01:17.9]} 27. dxe6 {[%clk 0:01:55.7]} 27... Re8 {[%clk 0:01:19.5]}
28. e7+ {[%clk 0:01:42]} 28... Kg7 {[%clk 0:01:20.1]} 29. Qxd7 {[%clk
0:01:37.5]} 29... Qc3 {[%clk 0:01:19.4]} 30. Rd1 {[%clk 0:00:22.3]} 30... Qc8
{[%clk 0:00:31]} 31. Qxc8 {[%clk 0:00:21.3]} 31... Bxc8 {[%clk 0:00:32.9]} 32.
Rd8 {[%clk 0:00:22.3]} 32... Rxe7 {[%clk 0:00:34.2]} 33. Rxc8 {[%clk 0:00:23.4]}
33... Re1+ {[%clk 0:00:29.9]} 34. Bf1 {[%clk 0:00:24.3]} 34... Ra1 {[%clk
0:00:30.5]} 35. Rc2 {[%clk 0:00:19.9]} 35... a6 {[%clk 0:00:31.2]} 36. Kg2
{[%clk 0:00:20.3]} 36... h5 {[%clk 0:00:32.2]} 37. h4 {[%clk 0:00:20.2]} 37...
g4 {[%clk 0:00:31.1]} 38. Be2 {[%clk 0:00:20.9]} 38... f6 {[%clk 0:00:30.6]} 39.
f3 {[%clk 0:00:21.9]} 39... f5 {[%clk 0:00:30.7]} 40. f4 {[%clk 0:00:21.7]}
40... Kf7 {[%clk 0:00:29.7]} 41. Bd3 {[%clk 0:00:22.1]} 41... Ke6 {[%clk
0:00:29.7]} 42. Rc6+ {[%clk 0:00:22.6]} 42... Kd5 {[%clk 0:00:31.1]} 43. Rxa6
{[%clk 0:00:23.6]} 43... b4 {[%clk 0:00:33]} 44. Bxf5 {[%clk 0:00:23.1]} 44...
Kd4 {[%clk 0:00:30.9]} 45. Be6 {[%clk 0:00:21.8]} 1-0

[Event "*** Titled Tuesday 3|2 Blitz"]
[Site "Chess.com"]
[Date "2015.05.05"]
[Round "8"]
[White "iFrancisco"]
[Black "Malev212"]
[Result "0-1"]
[WhiteElo "2295"]
[BlackElo "2209"]
[TimeControl "180+2"]
[EndTime "12:46:23 PDT"]
[Termination "Malev212 won by resignation"]

1. e4 {[%clk 0:03:01.9]} 1... g6 {[%clk 0:02:58.3]} 2. d4 {[%clk 0:03:02.5]}
2... d6 {[%clk 0:02:58.8]} 3. Nc3 {[%clk 0:03:02.6]} 3... c6 {[%clk 0:02:59.7]}
4. Be3 {[%clk 0:03:02.8]} 4... Nf6 {[%clk 0:02:59.2]} 5. f3 {[%clk 0:03:03.7]}
5... b5 {[%clk 0:02:58.5]} 6. Qd2 {[%clk 0:03:05.1]} 6... Nbd7 {[%clk
0:02:58.9]} 7. Nge2 {[%clk 0:03:01.3]} 7... Bb7 {[%clk 0:02:55.1]} 8. g4 {[%clk
0:03:00]} 8... Qa5 {[%clk 0:02:53.4]} 9. Ng3 {[%clk 0:03:00.2]} 9... Nb6 {[%clk
0:02:51.3]} 10. b3 {[%clk 0:02:42.2]} 10... Bg7 {[%clk 0:02:49.6]} 11. Nb1
{[%clk 0:02:33.2]} 11... Qxd2+ {[%clk 0:02:46.1]} 12. Nxd2 {[%clk 0:02:34.4]}
12... a6 {[%clk 0:02:43.3]} 13. c3 {[%clk 0:02:27]} 13... h5 {[%clk 0:02:27.7]}
14. gxh5 {[%clk 0:02:27.3]} 14... Nxh5 {[%clk 0:02:27.9]} 15. Nxh5 {[%clk
0:02:22.9]} 15... Rxh5 {[%clk 0:02:28.3]} 16. O-O-O {[%clk 0:02:10]} 16... c5
{[%clk 0:02:28.7]} 17. dxc5 {[%clk 0:02:05.8]} 17... dxc5 {[%clk 0:02:24.2]} 18.
c4 {[%clk 0:02:02.6]} 18... b4 {[%clk 0:02:23.5]} 19. Be2 {[%clk 0:01:57.4]}
19... Nd7 {[%clk 0:02:21.9]} 20. Nf1 {[%clk 0:01:47.2]} 20... O-O-O {[%clk
0:02:09.6]} 21. Ng3 {[%clk 0:01:48.1]} 21... Rh3 {[%clk 0:02:03.9]} 22. f4
{[%clk 0:01:44]} 22... f5 {[%clk 0:01:53.9]} 23. Bf1 {[%clk 0:01:23.2]} 23...
Rh4 {[%clk 0:01:49.1]} 24. Bg2 {[%clk 0:01:22.9]} 24... Bh6 {[%clk 0:01:45.7]}
25. Rd2 {[%clk 0:01:03]} 25... Nf6 {[%clk 0:01:39.1]} 26. exf5 {[%clk 0:00:54]}
26... Bxg2 {[%clk 0:01:31.2]} 27. Rxg2 {[%clk 0:00:54.1]} 27... Rd3 {[%clk
0:01:31.6]} 28. Bxc5 {[%clk 0:00:38.2]} 28... Bxf4+ {[%clk 0:01:30.4]} 29. Kc2
{[%clk 0:00:38.7]} 29... Rc3+ {[%clk 0:01:28.9]} 30. Kb2 {[%clk 0:00:35.1]}
30... Be5 {[%clk 0:01:28.2]} 31. Kb1 {[%clk 0:00:31.7]} 31... Rxg3 {[%clk
0:01:27.5]} 32. Rxg3 {[%clk 0:00:27.2]} 32... Bxg3 {[%clk 0:01:27.2]} 33. Bxe7
{[%clk 0:00:28.8]} 33... Be5 {[%clk 0:01:22.7]} 34. fxg6 {[%clk 0:00:28.4]}
34... Rg4 {[%clk 0:01:23.2]} 35. Re1 {[%clk 0:00:26.8]} 35... Bc3 {[%clk
0:01:23.5]} 36. Rf1 {[%clk 0:00:08.9]} 36... Rxg6 {[%clk 0:01:23.7]} 37. a3
{[%clk 0:00:10.4]} 37... a5 {[%clk 0:01:20.7]} 38. axb4 {[%clk 0:00:11.2]} 38...
axb4 {[%clk 0:01:20.9]} 39. Bxf6 {[%clk 0:00:11.3]} 39... Bxf6 {[%clk
0:01:20.1]} 40. Rf5 {[%clk 0:00:10.4]} 40... Kd7 {[%clk 0:01:17.8]} 41. Rb5
{[%clk 0:00:10.1]} 41... Bc3 {[%clk 0:01:15]} 42. h4 {[%clk 0:00:11.3]} 42...
Rg2 {[%clk 0:01:13.5]} 43. Kc1 {[%clk 0:00:10.8]} 43... Rh2 {[%clk 0:01:10.6]}
44. h5 {[%clk 0:00:12.2]} 44... Kc6 {[%clk 0:01:10.8]} 45. Rd5 {[%clk
0:00:13.2]} 45... Bg7 {[%clk 0:01:07]} 46. Kd1 {[%clk 0:00:14.5]} 46... Rh3
{[%clk 0:01:05.2]} 47. Kc2 {[%clk 0:00:15.4]} 47... Rc3+ {[%clk 0:01:04.6]} 48.
Kd2 {[%clk 0:00:16.8]} 48... Rxb3 {[%clk 0:01:04.8]} 49. Kc2 {[%clk 0:00:17.6]}
49... Rc3+ {[%clk 0:01:04.7]} 50. Kb1 {[%clk 0:00:19.5]} 50... Rh3 {[%clk
0:01:03.8]} 51. Rg5 {[%clk 0:00:20.1]} 51... Bd4 {[%clk 0:01:02.8]} 52. Rb5
{[%clk 0:00:19.9]} 52... Bc5 {[%clk 0:01:02.2]} 53. Kc2 {[%clk 0:00:20.3]} 53...
Rxh5 {[%clk 0:01:02.9]} 54. Kb3 {[%clk 0:00:21.6]} 54... Rh3+ {[%clk 0:01:02.9]}
55. Kb2 {[%clk 0:00:22.3]} 55... Bd4+ {[%clk 0:01:01.2]} 56. Kc2 {[%clk
0:00:22.7]} 56... Rc3+ {[%clk 0:01:01]} 57. Kb1 {[%clk 0:00:23.6]} 57... b3
{[%clk 0:01:01.8]} 58. Rh5 {[%clk 0:00:25.5]} 58... Rg3 {[%clk 0:01:01.5]} 59.
Rd5 {[%clk 0:00:24.7]} 0-1